fUSD/lending_fUSD_20260121
["ID","MTS","AMOUNT","RATE_DAILY","PERIOD"]
[402936064,1768997439996,-3240.0,0.00016861,2]
[402936065,1768997440007,-1670.0,0.0001687,2]
[402936066,1768997440016,-1886.0,0.0001687,2]
[402936067,1768997440026,-500.0,0.0001687,2]
[402936068,1768997440036,-389.65716214,0.0001687,2]
[402936069,1768997440046,-500.0,0.0001687,2]
[402936070,1768997440056,-416.0,0.0001687,2]
[402936071,1768997440066,-239.03553082,0.00016875,2]
[402936072,1768997440080,-305.22366862,0.00016903,2]
[402936073,1768997440091,-569.0,0.00016903,2]
[402936074,1768997440100,-306.0,0.00016903,2]
[402936075,1768997440110,-500.0,0.00016912,2]
[402936076,1768997440359,-7790.52933413,0.00016913,2]
[402936077,1768997440369,-13164.25701073,0.00016913,2]
[402936078,1768997440379,-500.0,0.00016925,2]
[402936079,1768997440389,-500.0,0.00016925,2]
[402936080,1768997440399,-416.0,0.00016925,2]
[402936081,1768997440409,-1110.0,0.00016937,2]
[402936082,1768997440419,-1398.0,0.00016937,2]
[402936083,1768997440428,-200.0,0.00016967,2]
[402936084,1768997440437,-934.0,0.00016971,2]
[402936085,1768997440446,-500.0,0.0001698,2]
[402936086,1768997440456,-500.0,0.0001698,2]
[402936087,1768997440465,-416.0,0.0001698,2]
[402936088,1768997440474,-1031.07,0.0001698,2]
[402936089,1768997440484,-691.78,0.0001698,2]
[402936090,1768997440493,-249.95233763,0.00016984,2]
[402936091,1768997440502,-1416.0,0.00017004,2]
[402936092,1768997440513,-180.92,0.00017028,2]
[402936093,1768997440522,-1000.0,0.00017032,2]
[402936094,1768997440532,-25542.716,0.00017032,2]
[402936095,1768997440543,-500.0,0.00017035,2]
[402936096,1768997440553,-500.0,0.00017035,2]
[402936097,1768997440562,-416.0,0.00017035,2]
[402936098,1768997440572,-628.0,0.00017038,2]
[402936099,1768997440581,-7790.52933413,0.00017054,2]
[402936100,1768997440592,-13164.25701073,0.00017054,2]
[402936101,1768997440601,-195.04713978,0.00017067,2]
[402936102,1768997440610,-223.0,0.00017072,2]
[402936103,1768997440620,-500.0,0.0001709,2]
[402936104,1768997440630,-416.0,0.0001709,2]
[402936105,1768997440639,-309.42998015,0.00017114,2]
[402936106,1768997440648,-278.92,0.00017131,2]
[402936107,1768997440658,-500.0,0.00017144,2]
[402936108,1768997440669,-416.0,0.00017144,2]
[402936109,1768997440678,-2048.26176511,0.00017187,2]
[402936110,1768997440687,-7790.52933413,0.00017195,2]
[402936111,1768997440697,-13164.25701073,0.00017195,2]
[402936112,1768997440706,-236.00080963,0.00017199,2]
[402936113,1768997440716,-416.0,0.00017199,2]
[402936114,1768997440725,-416.0,0.00017254,2]
[402936115,1768997440735,-1031.07,0.00017254,2]
[402936116,1768997440744,-195.04713978,0.00017275,2]
[402936117,1768997440754,-151.0,0.00017281,2]
[402936118,1768997440763,-416.0,0.00017309,2]
[402936119,1768997440772,-581.80673396,0.00017321,2]
[402936120,1768997440782,-1000.0,0.00017321,2]
[402936121,1768997440791,-1000.0,0.00017321,2]
[402936122,1768997440800,-438.72320823,0.00017321,2]
[402936123,1768997440809,-1000.0,0.00017321,2]
[402936124,1768997440818,-500.0,0.00017321,2]
[402936125,1768997440827,-7790.52933413,0.00017336,2]
[402936126,1768997440837,-13164.25701073,0.00017336,2]
[402936127,1768997440848,-713.86,0.00017359,2]
[402936128,1768997440857,-500.0,0.00017363,2]
[402936129,1768997440866,-416.0,0.00017364,2]
[402936130,1768997440875,-1977.14832793,0.00017387,2]
[402936131,1768997440885,-416.0,0.00017418,2]
[402936132,1768997440894,-416.0,0.00017473,2]
[402936133,1768997440904,-7790.52933413,0.00017477,2]
[402936134,1768997440913,-13164.25701073,0.00017477,2]
[402936135,1768997440922,-195.04713978,0.00017483,2]
[402936136,1768997440933,-841.0,0.0001751,2]
[402936137,1768997440941,-249.95233763,0.00017526,2]
[402936138,1768997440951,-416.0,0.00017528,2]
[402936139,1768997440960,-1031.07,0.00017528,2]
[402936140,1768997440969,-841.0,0.00017562,2]
[402936141,1768997440978,-416.0,0.00017583,2]
[402936142,1768997440987,-691.78,0.00017594,2]
[402936143,1768997440996,-500.0,0.00017595,2]
[402936144,1768997441005,-500.0,0.00017595,2]
[402936145,1768997441014,-150.0,0.00017595,2]
[402936146,1768997441023,-150.0,0.00017595,2]
[402936147,1768997441032,-150.65315728,0.00017595,2]
[402936148,1768997441042,-150.0,0.00017595,2]
[402936149,1768997441052,-150.0,0.00017595,2]
[402936150,1768997441062,-151.07703537,0.00017595,2]
[402936151,1768997441072,-1000.0,0.000176,2]
[402936152,1768997441081,-7790.52933413,0.00017618,2]
[402936153,1768997441091,-13164.25701073,0.00017618,2]
[402936154,1768997441100,-416.0,0.00017637,2]
[402936155,1768997441110,-7622.11249316,0.0001764,2]
[402936156,1768997441119,-500.0,0.0001765,2]
[402936157,1768997441128,-500.0,0.0001765,2]
[402936158,1768997441137,-161.25613076,0.0001765,2]
[402936159,1768997441146,-150.0,0.0001765,2]
[402936160,1768997441156,-150.0,0.0001765,2]
[402936161,1768997441165,-150.0,0.0001765,2]
[402936162,1768997441175,-195.04713978,0.00017692,2]
[402936163,1768997441184,-432.0,0.00017692,2]
[402936164,1768997441193,-1000.0,0.000177,2]
[402936165,1768997441202,-500.0,0.00017705,2]
[402936166,1768997441212,-500.0,0.00017705,2]
[402936167,1768997441225,-150.0,0.00017705,2]
[402936168,1768997441243,-150.0,0.00017705,2]
[402936169,1768997441253,-221.17629805,0.00017705,2]
[402936170,1768997441262,-5237.20489654,0.00017754,2]
[402936171,1768997441271,-7790.52933413,0.00017759,2]
[402936172,1768997441284,-13164.25701073,0.00017759,2]
[402936173,1768997441294,-500.0,0.00017759,2]
[402936174,1768997441303,-500.0,0.00017759,2]
[402936175,1768997441313,-155.03086821,0.00017759,2]
[402936176,1768997441322,-150.0,0.00017759,2]
[402936177,1768997441331,-1031.07,0.00017802,2]
[402936178,1768997441340,-500.0,0.00017814,2]
[402936180,1768997441350,-153.53248348,0.00017814,2]
[402936181,1768997441359,-150.0,0.00017814,2]
[402936182,1768997441368,-151.0,0.00017829,2]
[402936183,1768997441378,-1118.35,0.00017842,2]
[402936184,1768997441388,-1500.0,0.00017868,2]
[402936185,1768997441398,-570.67630539,0.00017868,2]
[402936186,1768997441407,-500.0,0.00017869,2]
[402936187,1768997441416,-182.27113961,0.00017869,2]
[402936188,1768997441425,-500.0,0.00017886,2]
[402936189,1768997441434,-5217.72571894,0.00017887,2]
[402936191,1768997441443,-9204.686645,0.00017887,2]
[402936193,1768997441452,-13769.66072477,0.00017887,2]
[402936195,1768997441462,-18630.8397,0.00017887,2]
[402936197,1768997441471,-500.0,0.00017899,2]
[402936198,1768997441480,-10000.0,0.000179,2]
[402936199,1768997441490,-25000.0,0.000179,3]
[402936200,1768997441499,-1000.0,0.000179,2]
[402936201,1768997441508,-7790.52933413,0.000179,2]
[402936202,1768997441517,-13164.25701073,0.000179,2]
[402936203,1768997441526,-862.39790705,0.000179,2]
[402936204,1768997441540,-249.46063035,0.000179,2]
[402936205,1768997441550,-4452.10225318,0.000179,2]
[402936206,1768997441559,-250.00005406,0.000179,2]
[402936207,1768997441569,-10566.0,0.000179,2]
[402936208,1768997441578,-500.0,0.00017924,2]
[402936209,1768997441587,-1000.0,0.0001797,2]
[402936210,1768997441599,-500.0,0.0001797,2]
[402936211,1768997441608,-1000.0,0.0001797,2]
[402936212,1768997441617,-694.631145,0.0001797,2]
[402936213,1768997441627,-1321.57411122,0.0001797,2]
[402936214,1768997441636,-15055.0,0.00017973,2]
[402936215,1768997441645,-30553.0,0.00017973,2]
[402936216,1768997441655,-500.0,0.00017973,2]
[402936217,1768997441664,-500.0,0.00017973,2]
[402936218,1768997441674,-500.0,0.00017973,2]
[402936219,1768997441684,-500.0,0.00017973,2]
[402936220,1768997441693,-500.79549494,0.00017973,2]
[402936221,1768997441702,-500.0,0.00017973,2]
[402936222,1768997441711,-500.0,0.00017973,2]
[402936223,1768997441720,-500.12560695,0.00017973,2]
[402936224,1768997441729,-500.15189466,0.00017973,2]
[402936225,1768997441739,-257.99612183,0.00017973,2]
[402936226,1768997441747,-150.0,0.00017973,2]
[402936227,1768997441756,-500.0,0.00017973,2]
[402936228,1768997441765,-159.96427776,0.00017973,2]
[402936229,1768997441775,-550.70733566,0.00017973,2]
[402936230,1768997441784,-500.0,0.00017973,2]
[402936231,1768997441793,-500.0,0.00017973,2]
[402936232,1768997441803,-586.66357325,0.00017973,2]
[402936233,1768997441812,-500.0,0.00017973,2]
[402936234,1768997441822,-500.0,0.00017973,2]
[402936235,1768997441831,-500.0,0.00017973,2]
[402936236,1768997441841,-150.0,0.00017973,2]
[402936237,1768997441851,-500.0,0.00017979,2]
[402936238,1768997441860,-500.0,0.00017982,2]
[402936239,1768997441870,-305.22366862,0.0001799,2]
[402936240,1768997441879,-305.22366862,0.0001799,2]
[402936241,1768997441888,-151.0,0.00017997,2]
[402936242,1768997441898,-150.0,0.00017999,2]
[402936243,1768997441907,-150.0,0.00017999,2]
[402936244,1768997441917,-150.0,0.00017999,2]
[402936245,1768997441926,-284.69021713,0.00017999,2]
[402936246,1768997441936,-500.0,0.00017999,2]
[402936247,1768997441945,-500.0,0.00017999,2]
[402936248,1768997441954,-374.17567263,0.00017999,2]
[402936249,1768997441964,-1086.0844155,0.00017999,5]
[402936250,1768997441973,-300.0,0.00017999,2]
[402936251,1768997441983,-300.0,0.00017999,2]
[402936252,1768997441992,-300.0,0.00017999,2]
[402936253,1768997442002,-300.0,0.00017999,2]
[402936254,1768997442011,-666.0,0.00017999,2]
[402936255,1768997442021,-300.0,0.00017999,2]
[402936256,1768997442030,-666.0,0.00017999,2]
[402936257,1768997442041,-500.0,0.00017999,2]
[402936258,1768997442051,-352.34,0.00017999,2]
[402936259,1768997442060,-2451292.69727882,0.00018,2]
[402936260,1768997442130,-2492.13997567,0.00018,2]
[402936261,1768997442158,-195.04713978,0.000179,2]
[402936262,1768997442168,-17542.16051182,0.00018,2]
[402936263,1768997442180,-7095667.3390124,0.00018,2]
[402936264,1768997442195,-1819.605,0.00018,2]
[402936265,1768997442207,-341.658,0.00018,2]
[402936268,1768997443045,-151.0,0.00016881,2]
[402936269,1768997443055,-4617.759158,0.00018,2]
[402936270,1768997443100,-13608.02779183,0.00018,2]
[402936271,1768997443311,-1185.93510395,0.00018,2]
[402936272,1768997443367,-407920.48785385,0.00018,2]
[402936303,1768997445938,-2500.83297239,0.00018,2]
[402936310,1768997445993,-3845.88029822,0.00018,2]
[402936312,1768997446003,-306.97420151,0.00018,2]
[402936333,1768997446206,-3104.964,0.00018,2]
[402936335,1768997446219,-3829.85496282,0.00018,2]
[402936338,1768997446263,-265.47445603,0.00018,2]
[402936340,1768997446275,-5922.0,0.00018,2]
[402936342,1768997446285,-676.87939562,0.00018,2]
[402936343,1768997446297,-900.46,0.00018,2]
[402936348,1768997492539,1829.878,0.000162,2]
[402936349,1768997492568,165.389,0.000162,2]
[402936350,1768997593594,167.6921,0.00016331,2]
[402936351,1768997709336,2023.92,0.000227,120]
[402936352,1768997859527,1285.81,0.00015771,2]
[402936353,1768997892534,500.0,0.00016363,2]
[402936354,1768997893625,500.0,0.00016363,2]
[402936355,1768997893702,150.0,0.00016363,2]
[402936356,1768997893732,158.4322296,0.00016363,2]
[402936357,1768997894054,500.0,0.00016363,2]
[402936358,1768997894273,150.0,0.00016363,2]
[402936359,1768997895564,500.0,0.00016363,2]
[402936360,1768997961564,150.0,0.00016363,2]
[402936361,1768998003725,500.0,0.00016363,2]
[402936362,1768998004803,500.0,0.00016363,2]
[402936363,1768998007843,150.0,0.00016363,2]
[402936364,1768998054396,500.0,0.00018,30]
[402936365,1768998211835,150.0,0.00016363,2]
[402936366,1768998211871,161.18999075,0.00016363,2]
[402936367,1768998212805,150.0,0.00016363,2]
[402936368,1768998212859,161.47767001,0.00016363,2]
[402936369,1768998212886,150.0,0.00016363,2]
[402936370,1768998294654,183.83,0.00015606,2]
[402936371,1768998341572,500.0,0.00016363,2]
[402936372,1768998342250,500.0,0.00016363,2]
[402936373,1768998343969,191.31290121,0.00016363,2]
[402936374,1768998364269,1353.23,0.00015579,2]
[402936375,1768998406169,150.0,0.00016363,2]
[402936376,1768998412416,7121.63709879,0.000162,5]
[402936377,1768998412440,10000.01,0.000162,5]
[402936378,1768998412461,9179.12000333,0.000162,5]
[402936379,1768998496080,10000.01,0.00016331,2]
[402936380,1768998496105,10000.01,0.00016331,2]
[402936381,1768998496128,10000.01,0.00016331,2]
[402936382,1768998496152,10000.01,0.00016331,2]
[402936383,1768998496176,10000.01,0.00016331,2]
[402936384,1768998496200,10000.01,0.00016331,2]
[402936385,1768998496222,10000.01,0.00016331,2]
[402936386,1768998496247,10000.01,0.00016331,2]
[402936387,1768998496270,10000.01,0.00016331,2]
[402936388,1768998496294,10000.01,0.00016331,2]
[402936389,1768998496317,10000.01,0.00016331,2]
[402936390,1768998496341,10000.01,0.00016331,2]
[402936391,1768998496364,10000.01,0.00016331,2]
[402936392,1768998496393,10000.01,0.00016331,2]
[402936393,1768998496417,10000.01,0.00016331,2]
[402936394,1768998496443,849999.85,0.00016331,2]
[402936395,1768998516315,205.80435828,0.00016363,2]
[402936396,1768998516345,500.0,0.00016363,2]
[402936397,1768998516990,500.0,0.00016363,2]
[402936398,1768998517171,500.0,0.00016363,2]
[402936399,1768998517448,154.75207679,0.00016363,2]
[402936400,1768998518918,500.0,0.00016363,2]
[402936401,1768998538098,1000.0,0.00015596,2]
[402936405,1768998579137,2048.26176511,0.00016331,2]
[402936406,1768998579166,3869.20302636,0.00016331,2]
[402936407,1768998579203,507.32904147,0.00016331,2]
[402936408,1768998586651,214.65973199,0.00016331,2]
[402936409,1768998586674,237.90855499,0.00016331,2]
[402936410,1768998604380,341.0058,0.00016316,2]
[402936411,1768998620735,150.0,0.00016363,2]
[402936412,1768998625161,9271.09564501,0.00016331,2]
[402936413,1768998625188,10000.01,0.00016331,2]
[402936414,1768998625212,10000.01,0.00016331,2]
[402936415,1768998625237,10000.01,0.00016331,2]
[402936416,1768998625263,10000.01,0.00016331,2]
[402936417,1768998625289,10000.01,0.00016331,2]
[402936418,1768998625314,10000.01,0.00016331,2]
[402936419,1768998625337,10000.01,0.00016331,2]
[402936420,1768998625362,10000.01,0.00016331,2]
[402936421,1768998625388,10000.01,0.00016331,2]
[402936422,1768998625412,10000.01,0.00016331,2]
[402936423,1768998625435,10000.01,0.00016331,2]
[402936424,1768998625457,10000.01,0.00016331,2]
[402936425,1768998625479,10000.01,0.00016331,2]
[402936426,1768998625505,10000.01,0.00016331,2]
[402936427,1768998625529,850728.76435499,0.00016331,2]
[402936438,1768998633828,785.09,0.00015582,2]
[402936446,1768998636721,-288.0,0.00016416,2]
[402936447,1768998636732,-300.0,0.00016416,2]
[402936448,1768998636741,-195.0,0.00016416,2]
[402936449,1768998636750,-150.77014404,0.00016416,2]
[402936450,1768998636760,-250.0,0.00016416,2]
[402936451,1768998636769,-300.0,0.00016416,2]
[402936452,1768998636779,-300.0,0.00016416,2]
[402936453,1768998636788,-208.26366221,0.00016416,2]
[402936454,1768998636798,-195.0,0.00016417,2]
[402936455,1768998636807,-195.0,0.00016417,2]
[402936456,1768998636817,-300.0,0.00016417,2]
[402936457,1768998636826,-1200.0,0.00016417,2]
[402936458,1768998636836,-300.0,0.00016417,2]
[402936459,1768998636845,-300.0,0.00016417,2]
[402936460,1768998636858,-150.0,0.00016418,2]
[402936461,1768998636869,-150.0,0.00016418,2]
[402936462,1768998636879,-500.0,0.00016418,2]
[402936463,1768998636889,-500.0,0.00016418,2]
[402936465,1768998636898,-500.0,0.00016418,2]
[402936467,1768998636909,-500.0,0.00016418,2]
[402936469,1768998636918,-500.0,0.00016418,2]
[402936471,1768998636927,-500.0,0.00016418,2]
[402936473,1768998636936,-1339.53451941,0.00016421,2]
[402936475,1768998636946,-2924.56080698,0.00016426,2]
[402936477,1768998636957,-452.56828698,0.00016426,2]
[402936479,1768998636968,-547.77308168,0.00016426,2]
[402936515,1768998637284,-731.38855193,0.00016426,2]
[402936592,1768998638128,-2059.20317243,0.00016426,2]
[402936594,1768998638138,-1000.0,0.0001643,2]
[402936596,1768998638147,-546.43176608,0.0001643,2]
[402936601,1768998638184,-440.01001155,0.0001643,2]
[402936608,1768998638240,-1352.12422237,0.0001643,2]
[402936610,1768998638250,-205.352,0.0001643,2]
[402936612,1768998638259,-550.0,0.0001643,2]
[402936614,1768998638268,-25859.401,0.00016431,2]
[402936616,1768998638278,-2500.0,0.00016431,2]
[402936618,1768998638287,-150.0,0.00016473,2]
[402936620,1768998638296,-150.0,0.00016473,2]
[402936622,1768998638306,-500.0,0.00016473,2]
[402936624,1768998638315,-500.0,0.00016473,2]
[402936626,1768998638324,-500.0,0.00016473,2]
[402936628,1768998638333,-500.0,0.00016473,2]
[402936630,1768998638342,-500.0,0.00016473,2]
[402936632,1768998638351,-500.0,0.00016473,2]
[402936634,1768998638360,-392.39605232,0.00016476,2]
[402936636,1768998638369,-500.00000001,0.00016476,2]
[402936638,1768998638379,-188.2522023,0.00016476,2]
[402936640,1768998638389,-161.95604531,0.00016476,2]
[402936642,1768998638398,-500.0,0.00016476,2]
[402936644,1768998638407,-500.0,0.00016476,2]
[402936646,1768998638416,-500.0,0.00016476,2]
[402936649,1768998638433,-500.0,0.00016476,2]
[402936651,1768998638444,-500.0,0.00016476,2]
[402936653,1768998638453,-500.0,0.00016476,2]
[402936655,1768998638463,-500.0,0.00016476,2]
[402936657,1768998638472,-500.0,0.00016476,2]
[402936659,1768998638482,-500.0,0.00016476,2]
[402936661,1768998638491,-500.0,0.00016476,2]
[402936663,1768998638501,-500.0,0.00016476,2]
[402936665,1768998638510,-500.0,0.00016476,2]
[402936668,1768998638520,-500.0,0.00016476,2]
[402936669,1768998638529,-500.0,0.00016476,2]
[402936671,1768998638539,-500.0,0.00016476,2]
[402936674,1768998638548,-500.0,0.00016476,2]
[402936675,1768998638558,-500.0,0.00016476,2]
[402936678,1768998638568,-500.0,0.00016476,2]
[402936679,1768998638577,-500.0,0.00016476,2]
[402936682,1768998638590,-500.0,0.00016476,2]
[402936683,1768998638600,-500.0,0.00016476,2]
[402936685,1768998638610,-500.0,0.00016476,2]
[402936688,1768998638623,-500.0,0.00016476,2]
[402936689,1768998638634,-500.0,0.00016476,2]
[402936692,1768998638645,-500.0,0.00016476,2]
[402936694,1768998638655,-500.0,0.00016476,2]
[402936696,1768998638667,-500.0,0.00016476,2]
[402936698,1768998638677,-500.0,0.00016476,2]
[402936700,1768998638687,-500.0,0.00016476,2]
[402936702,1768998638698,-500.0,0.00016476,2]
[402936704,1768998638707,-500.0,0.00016476,2]
[402936706,1768998638717,-500.0,0.00016476,2]
[402936708,1768998638727,-500.0,0.00016476,2]
[402936709,1768998638736,-500.0,0.00016476,2]
[402936712,1768998638746,-500.0,0.00016476,2]
[402936714,1768998638755,-500.0,0.00016476,2]
[402936716,1768998638766,-500.0,0.00016476,2]
[402936718,1768998638776,-500.0,0.00016476,2]
[402936720,1768998638786,-624.63538627,0.00016476,2]
[402936722,1768998638796,-500.0,0.00016476,2]
[402936724,1768998638807,-500.0,0.00016476,2]
[402936726,1768998638817,-500.0,0.00016476,2]
[402936728,1768998638827,-500.0,0.00016476,2]
[402936730,1768998638837,-500.0,0.00016476,2]
[402936732,1768998638847,-500.0,0.00016476,2]
[402936734,1768998638858,-500.0,0.00016476,2]
[402936736,1768998638870,-500.0,0.00016476,2]
[402936738,1768998638880,-500.0,0.00016476,2]
[402936740,1768998638890,-500.0,0.00016476,2]
[402936742,1768998638901,-500.0,0.00016476,2]
[402936744,1768998638911,-500.0,0.00016476,2]
[402936746,1768998638921,-500.0,0.00016476,2]
[402936748,1768998638931,-500.0,0.00016476,2]
[402936750,1768998638941,-500.0,0.00016476,2]
[402936752,1768998638951,-500.0,0.00016476,2]
[402936754,1768998638960,-500.0,0.00016476,2]
[402936756,1768998638970,-500.0,0.00016476,2]
[402936758,1768998638979,-246.0,0.00016478,2]
[402936760,1768998638989,-500.0,0.00016478,2]
[402936762,1768998638999,-13828.086966,0.00016479,2]
[402936764,1768998639009,-403.02504207,0.0001648,2]
[402936766,1768998639019,-500.0,0.00016521,2]
[402936769,1768998639029,-243.57931379,0.00016521,2]
[402936770,1768998639038,-868.78,0.00016527,2]
[402936773,1768998639048,-187.0926832,0.00016527,2]
[402936775,1768998639057,-150.0,0.00016527,2]
[402936777,1768998639067,-500.0,0.00016527,2]
[402936778,1768998639076,-500.0,0.00016527,2]
[402936781,1768998639085,-500.0,0.00016527,2]
[402936783,1768998639095,-500.0,0.00016527,2]
[402936785,1768998639104,-500.0,0.00016527,2]
[402936786,1768998639113,-500.0,0.00016527,2]
[402936789,1768998639123,-510.51181022,0.0001653,2]
[402936791,1768998639132,-500.0,0.0001653,2]
[402936793,1768998639143,-510.66982026,0.0001653,2]
[402936795,1768998639152,-540.84751625,0.0001653,2]
[402936797,1768998639162,-500.0,0.0001653,2]
[402936799,1768998639171,-519.05995183,0.0001653,2]
[402936801,1768998639180,-489.99,0.0001653,2]
[402936803,1768998639188,-500.0,0.0001653,2]
[402936805,1768998639197,-500.0,0.0001653,2]
[402936807,1768998639206,-505.04837399,0.0001653,2]
[402936809,1768998639215,-500.0,0.0001653,2]
[402936811,1768998639224,-500.0,0.0001653,2]
[402936813,1768998639234,-500.0,0.0001653,2]
[402936815,1768998639243,-561.44150394,0.0001653,2]
[402936817,1768998639252,-500.0,0.0001653,2]
[402936819,1768998639262,-500.0,0.0001653,2]
[402936821,1768998639271,-500.0,0.0001653,2]
[402936823,1768998639280,-500.0,0.0001653,2]
[402936825,1768998639289,-514.94793868,0.0001653,2]
[402936827,1768998639298,-500.0,0.0001653,2]
[402936829,1768998639307,-500.0,0.0001653,2]
[402936831,1768998639316,-500.0,0.0001653,2]
[402936833,1768998639326,-500.0,0.0001653,2]
[402936835,1768998639334,-500.0,0.0001653,2]
[402936837,1768998639344,-500.0,0.0001653,2]
[402936839,1768998639353,-500.0,0.0001653,2]
[402936841,1768998639363,-500.0,0.0001653,2]
[402936843,1768998639373,-500.0,0.0001653,2]
[402936845,1768998639383,-500.0,0.0001653,2]
[402936847,1768998639392,-500.0,0.0001653,2]
[402936849,1768998639401,-500.0,0.0001653,2]
[402936851,1768998639410,-500.0,0.0001653,2]
[402936853,1768998639419,-500.0,0.0001653,2]
[402936855,1768998639428,-500.0,0.0001653,2]
[402936857,1768998639438,-642.58389368,0.0001653,2]
[402936859,1768998639447,-500.0,0.0001653,2]
[402936861,1768998639457,-500.0,0.0001653,2]
[402936863,1768998639466,-500.0,0.0001653,2]
[402936865,1768998639475,-352.34,0.0001653,2]
[402936867,1768998639484,-8314.06650312,0.00016557,2]
[402936869,1768998639493,-150.01304085,0.00016578,2]
[402936871,1768998639503,-150.40921962,0.00016582,2]
[402936873,1768998639512,-500.0,0.00016582,2]
[402936875,1768998639521,-500.0,0.00016582,2]
[402936877,1768998639530,-500.0,0.00016582,2]
[402936879,1768998639539,-500.0,0.00016582,2]
[402936881,1768998639548,-500.0,0.00016582,2]
[402936883,1768998639557,-500.0,0.00016582,2]
[402936885,1768998639566,-1000.0,0.00016607,2]
[402936887,1768998639575,-500.0,0.00016637,2]
[402936889,1768998639586,-500.0,0.00016637,2]
[402936891,1768998639596,-500.0,0.00016637,2]
[402936893,1768998639606,-500.0,0.00016637,2]
[402936895,1768998639615,-389.65716214,0.00016637,2]
[402936897,1768998639627,-500.0,0.00016637,2]
[402936899,1768998639637,-13828.08696596,0.00016639,2]
[402936901,1768998639646,-425.5,0.00016657,2]
[402936904,1768998639656,-430.07881284,0.00016685,2]
[402936906,1768998639666,-199.0,0.00016687,2]
[402936908,1768998639675,-992.34933124,0.00016691,2]
[402936909,1768998639684,-873.0,0.00016691,2]
[402936912,1768998639694,-500.0,0.00016692,2]
[402936913,1768998639703,-500.0,0.00016692,2]
[402936915,1768998639713,-500.0,0.00016692,2]
[402936917,1768998639723,-500.0,0.00016692,2]
[402936919,1768998639732,-500.0,0.00016692,2]
[402936922,1768998639745,-425.5,0.00016701,2]
[402936924,1768998639754,-234.04112718,0.00016706,2]
[402936926,1768998639764,-8314.06650303,0.00016706,2]
[402936928,1768998639775,-244.37435585,0.00016715,2]
[402936930,1768998639785,-194.0,0.00016725,2]
[402936932,1768998639794,-322.6107,0.00016733,2]
[402936934,1768998639803,-3002.70085788,0.00016733,2]
[402936936,1768998639813,-151.0,0.00016733,2]
[402936938,1768998639823,-2000.0,0.00016733,2]
[402936940,1768998639832,-500.0,0.00016733,2]
[402936942,1768998639841,-2000.0,0.00016733,2]
[402936944,1768998639850,-2000.0,0.00016733,2]
[402936946,1768998639860,-2000.0,0.00016733,2]
[402936948,1768998639870,-1099.17121896,0.00016733,2]
[402936949,1768998639880,-2000.0,0.00016733,2]
[402936950,1768998639889,-2000.0,0.00016733,2]
[402936951,1768998639898,-2000.0,0.00016733,2]
[402936952,1768998639907,-2000.0,0.00016733,2]
[402936953,1768998639916,-2000.0,0.00016733,2]
[402936954,1768998639926,-2000.0,0.00016733,2]
[402936955,1768998639935,-2000.0,0.00016733,2]
[402936956,1768998639944,-472.61250622,0.00016733,2]
[402936957,1768998639953,-2000.0,0.00016733,2]
[402936958,1768998639963,-2000.0,0.00016733,2]
[402936959,1768998639972,-2000.0,0.00016733,2]